[Event "8. Arber-Schachopen 2019"]
[Site "Bodenmais"]
[Date "2019.07.31"]
[Round "5.3"]
[White "Mirzoev, Emil"]
[Black "Schleining, Zoya"]
[Result "1-0"]
[ECO "E48"]
[WhiteElo "2493"]
[BlackElo "2339"]
[Annotator "ChessBase"]
[PlyCount "75"]
[EventDate "2019.07.27"]
[EventCountry "GER"]
[SourceTitle "playchess.com"]
[Source "ChessBase"]
[SourceQuality "1"]
[TimeControl "40/5400+30:1800+30"]

1. d4 {[%emt 0:00:00]} Nf6 {[%emt 0:00:00]} 2. c4 {[%emt 0:00:00]} e6 {[%emt 0:00:00]} 3. Nc3 {[%emt 0:00:00]} Bb4 {[%emt 0:00:00]} 4. e3 {[%emt 0:00:00]} O-O {[%emt 0:00:00]} 5. Bd3 {[%emt 0:00:00]} d5 {[%emt 0:00:14]} 6. cxd5 {[%emt 0:00:19]} exd5 {[%emt 0:00:18]} 7. Nge2 {[%emt 0:00:05]} Re8 {[%emt 0:02:53]} 8. Bd2 {[%emt 0:00:07]} Bd6 {[%emt 0:01:09]} 9. Nb5 {[%emt 0:03:30]} Bf8 {[%emt 0:02:06]} 10. Qc2 {[%emt 0:02:02]} Na6 {[%emt 0:06:25]} 11. a3 {[%emt 0:03:46]} c6 {[%emt 0:11:28]} 12. Nbc3 {[%emt 0:00:05]} c5 {[%emt 0:10:39]} 13. O-O {[%emt 0:20:59]} c4 {[%emt 0:11:30]} 14. Bf5 {[%emt 0:00:08]} Bxf5 {[%emt 0:07:48]} 15. Qxf5 {[%emt 0:00:08]} Nc7 {[%emt 0:00:06]} 16. f3 {[%emt 0:00:56]} Qd7 {[%emt 0:01:21]} 17. Qc2 {[%emt 0:03:32]} Qc6 {[%emt 0:10:57]} 18. b3 {[%emt 0:03:20]} Rac8 {[%emt 0:02:59]} 19. a4 {[%emt 0:03:57]} b6 {[%emt 0:03:34]} 20. bxc4 {[%emt 0:03:34]} Qxc4 {[%emt 0:00:13]} 21. Rfc1 {[%emt 0:00:45]} Na6 {[%emt 0:03:19]} 22. Qd1 {[%emt 0:02:39]} Qd3 {[%emt 0:05:13]} 23. Nf4 {[%emt 0:01:36]} Qf5 {[%emt 0:00:08]} 24. g4 {[%emt 0:02:48]} Qg5 {[%emt 0:01:48]} 25. Qe1 {[%emt 0:00:12]} Nb4 {[%emt 0:02:36]} 26. Nce2 {[%emt 0:01:10]} Nxg4 {[%emt 0:04:17]} 27. Qg3 {[%emt 0:02:58]} Nxh2 {[%emt 0:07:37]} 28. Kxh2 {[%emt 0:01:23]} Qxg3+ {[%emt 0:00:54]} 29. Kxg3 {[%emt 0:01:08]} Nc2 {[%emt 0:01:35]} 30. Ra2 {[%emt 0:01:46]} Na3 {[%emt 0:01:26]} 31. Rxc8 {[%emt 0:00:27]} Rxc8 {[%emt 0:00:05]} 32. Nxd5 {[%emt 0:00:10]} Bd6+ {[%emt 0:01:15]} 33. Kf2 {[%emt 0:00:20]} f5 {[%emt 0:01:24]} 34. Bb4 {[%emt 0:00:59]} Bxb4 {[%emt 0:00:26]} 35. Nxb4 {[%emt 0:00:08]} Rc4 {[%emt 0:00:15]} 36. Rxa3 {[%emt 0:00:56]} Rxb4 {[%emt 0:00:06]} 37. a5 {[%emt 0:00:08]} b5 {[%emt 0:01:16]} 38. Rc3 {[%emt 0:00:20]} 1-0

[Event "8. Arber-Schachopen 2019"]
[Site "Bodenmais"]
[Date "2019.07.31"]
[Round "5.4"]
[White "Rotstein, Arkadij"]
[Black "Poetz, Florian"]
[Result "0-1"]
[ECO "A46"]
[WhiteElo "2471"]
[BlackElo "2389"]
[Annotator "ChessBase"]
[PlyCount "109"]
[EventDate "2019.07.27"]
[EventCountry "GER"]
[SourceTitle "playchess.com"]
[Source "ChessBase"]
[SourceQuality "1"]
[TimeControl "40/5400+30:1800+30"]

1. d4 {[%emt 0:00:00]} Nf6 {[%emt 0:00:19]} 2. Nf3 {[%emt 0:00:05]} e6 {[%emt 0:00:34]} 3. e3 {[%emt 0:00:11]} b6 {[%emt 0:02:20]} 4. Bd3 {[%emt 0:00:11]} Bb7 {[%emt 0:00:04]} 5. O-O {[%emt 0:00:12]} Be7 {[%emt 0:04:47]} 6. c4 {[%emt 0:01:59]} O-O {[%emt 0:00:07]} 7. Nc3 {[%emt 0:00:06]} d5 {[%emt 0:00:15]} 8. cxd5 {[%emt 0:00:20]} Nxd5 {[%emt 0:02:02]} 9. e4 {[%emt 0:01:02]} Nxc3 {[%emt 0:00:58]} 10. bxc3 {[%emt 0:00:03]} c5 {[%emt 0:02:24]} 11. Bf4 {[%emt 0:11:41]} cxd4 {[%emt 0:19:10]} 12. cxd4 {[%emt 0:00:11]} Nc6 {[%emt 0:00:22]} 13. d5 {[%emt 0:07:51]} Nb4 {[%emt 0:07:31]} 14. Bb1 {[%emt 0:12:26]} Bf6 {[%emt 0:07:42]} 15. a3 {[%emt 0:29:50]} Bxa1 {[%emt 0:05:46]} 16. axb4 {[%emt 0:00:25]} exd5 {[%emt 0:04:17]} 17. e5 {[%emt 0:00:29]} g6 {[%emt 0:06:55]} 18. h4 {[%emt 0:06:55]} Bc3 {[%emt 0:04:29]} 19. Ng5 {[%emt 0:08:23]} Bxb4 20. h5 {[%emt 0:03:50]} f5 {[%emt 0:15:18]} 21. Ba2 {[%emt 0:05:36]} Be7 {[%emt 0:02:50]} 22. Ne6 {[%emt 0:02:09]} Qd7 {[%emt 0:00:06]} 23. Nxf8 {[%emt 0:00:25]} Rxf8 {[%emt 0:00:19]} 24. h6 {[%emt 0:01:10]} g5 {[%emt 0:01:09]} 25. Be3 {[%emt 0:00:44]} Qe6 {[%emt 0:00:21]} 26. Bd4 {[%emt 0:01:20]} Qxh6 {[%emt 0:00:53]} 27. Qa4 {[%emt 0:00:20]} Qc6 {[%emt 0:02:53]} 28. Qxc6 {[%emt 0:01:32]} Bxc6 {[%emt 0:00:01]} 29. Rc1 {[%emt 0:00:09]} Ba8 {[%emt 0:02:28]} 30. Rc7 {[%emt 0:00:18]} Bc5 {[%emt 0:00:23]} 31. Bb2 {[%emt 0:00:52]} a5 {[%emt 0:03:05]} 32. e6 {[%emt 0:03:08]} Rd8 {[%emt 0:03:20]} 33. Rg7+ {[%emt 0:01:10]} Kf8 {[%emt 0:00:08]} 34. Rf7+ {[%emt 0:00:27]} Ke8 {[%emt 0:01:54]} 35. Bf6 {[%emt 0:01:04]} Rd6 {[%emt 0:01:31]} 36. Re7+ {[%emt 0:00:06]} Kf8 {[%emt 0:00:14]} 37. Rf7+ {[%emt 0:00:46]} Ke8 {[%emt 0:00:07]} 38. Re7+ {[%emt 0:00:06]} Kf8 {[%emt 0:00:05]} 39. Ra7 {[%emt 0:00:29]} Bc6 {[%emt 0:01:41]} 40. Be7+ {[%emt 0:00:41]} Ke8 {[%emt 0:00:40]} 41. Bxd6 {[%emt 0:30:14]} Bxd6 {[%emt 0:30:02]} 42. Rxh7 {[%emt 0:00:00]} a4 {[%emt 0:00:00]} 43. Ra7 {[%emt 0:00:00]} a3 {[%emt 0:00:00]} 44. Rf7 {[%emt 0:00:00]} f4 {[%emt 0:00:00]} 45. Rg7 {[%emt 0:00:00]} d4 {[%emt 0:00:00]} 46. Rxg5 {[%emt 0:00:00]} d3 {[%emt 0:00:00]} 47. Kf1 {[%emt 0:00:00]} Bb4 {[%emt 0:00:00]} 48. f3 {[%emt 0:01:01]} Ke7 {[%emt 0:00:00]} 49. Bc4 {[%emt 0:00:25]} Bc3 {[%emt 0:00:01]} 50. Rf5 {[%emt 0:00:56]} d2 {[%emt 0:04:54]} 51. Ke2 {[%emt 0:00:03]} Ba4 {[%emt 0:00:25]} 52. Rd5 {[%emt 0:00:04]} b5 {[%emt 0:00:36]} 53. Rd7+ {[%emt 0:03:42]} Ke8 {[%emt 0:00:19]} 54. Ba2 {[%emt 0:01:17]} b4 {[%emt 0:00:26]} 55. Bc4 {[%emt 0:01:06]} 0-1

[Event "8. Arber-Schachopen 2019"]
[Site "Bodenmais"]
[Date "2019.07.31"]
[Round "5.5"]
[White "Bogdanov, Egor"]
[Black "Hoffmann, Michael"]
[Result "1/2-1/2"]
[ECO "B48"]
[WhiteElo "2407"]
[BlackElo "2438"]
[Annotator "NA"]
[PlyCount "41"]
[EventDate "2019.07.27"]
[EventCountry "GER"]
[SourceTitle "playchess.com"]
[Source "ChessBase"]
[SourceQuality "1"]
[TimeControl "40/5400+30:1800+30"]

1. e4 c5 {[%emt 0:00:29]} 2. Nc3 {[%emt 0:00:00]} e6 {[%emt 0:01:08]} 3. Nf3 {[%emt 0:00:00]} Nc6 {[%emt 0:01:46]} 4. d4 {[%emt 0:00:00]} cxd4 {[%emt 0:00:08]} 5. Nxd4 {[%emt 0:00:00]} Qc7 {[%emt 0:00:45]} 6. Be3 {[%emt 0:00:20]} a6 {[%emt 0:00:28]} 7. Qf3 {[%emt 0:00:17]} Nf6 {[%emt 0:00:40]} 8. O-O-O {[%emt 0:00:48]} Ne5 {[%emt 0:01:06]} 9. Qg3 {[%emt 0:00:09]} b5 {[%emt 0:00:49]} 10. Bf4 {[%emt 0:00:31]} d6 {[%emt 0:00:50]} 11. Bxb5+ {[%emt 0:00:58]} axb5 {[%emt 0:00:23]} 12. Ndxb5 {[%emt 0:00:39]} Qb8 {[%emt 0:01:04]} 13. Rxd6 {[%emt 0:02:10]} Nh5 {[%emt 0:01:36]} 14. Qg5 {[%emt 0:05:43]} Bxd6 {[%emt 0:00:24]} 15. Nxd6+ {[%emt 0:04:07]} Qxd6 {[%emt 0:00:04]} 16. Bxe5 {[%emt 0:00:26]} Ra5 {[%emt 0:02:37]} 17. f4 {[%emt 0:00:29]} Nxf4 {[%emt 0:12:54]} 18. Bxd6 {[%emt 0:00:26]} Rxg5 {[%emt 0:02:25]} 19. Bxf4 {[%emt 0:00:02]} Rxg2 {[%emt 0:00:12]} 20. a4 {[%emt 0:25:12]} Ke7 {[%emt 0:09:03]} 21. b4 {[%emt 0:03:39]} 1/2-1/2

[Event "8. Arber-Schachopen 2019"]
[Site "Bodenmais"]
[Date "2019.07.31"]
[Round "5.6"]
[White "Bensch, Patrick"]
[Black "Fruehe, Norbert"]
[Result "1-0"]
[ECO "A35"]
[WhiteElo "2197"]
[BlackElo "1936"]
[Annotator "NA"]
[PlyCount "51"]
[EventDate "2019.07.27"]
[EventCountry "GER"]
[SourceTitle "playchess.com"]
[Source "ChessBase"]
[SourceQuality "1"]
[TimeControl "40/5400+30:1800+30"]

1. c4 c5 {[%emt 0:00:00]} 2. Nf3 {[%emt 0:00:27]} Nc6 {[%emt 0:00:11]} 3. Nc3 {[%emt 0:03:47]} Nf6 {[%emt 0:00:39]} 4. g3 {[%emt 0:01:25]} d5 {[%emt 0:02:03]} 5. cxd5 {[%emt 0:02:55]} Nxd5 {[%emt 0:00:47]} 6. Bg2 {[%emt 0:00:25]} f6 {[%emt 0:04:48]} 7. O-O {[%emt 0:02:32]} Nc7 {[%emt 0:04:31]} 8. d3 {[%emt 0:10:52]} e5 {[%emt 0:02:52]} 9. Nd2 {[%emt 0:07:41]} Be6 {[%emt 0:06:52]} 10. Bxc6+ {[%emt 0:10:24]} bxc6 {[%emt 0:01:10]} 11. Qa4 {[%emt 0:00:14]} Qd7 {[%emt 0:06:31]} 12. Nc4 {[%emt 0:00:47]} Nd5 {[%emt 0:04:59]} 13. Bd2 {[%emt 0:03:14]} Rb8 {[%emt 0:05:45]} 14. Ne4 {[%emt 0:03:38]} Nb6 {[%emt 0:03:32]} 15. Qc2 {[%emt 0:02:54]} Nxc4 {[%emt 0:04:46]} 16. dxc4 {[%emt 0:00:03]} Qd4 {[%emt 0:00:43]} 17. b3 {[%emt 0:03:35]} f5 {[%emt 0:07:10]} 18. Ng5 {[%emt 0:02:26]} Bd7 {[%emt 0:03:49]} 19. Bc3 {[%emt 0:03:00]} Qd6 {[%emt 0:04:50]} 20. Nf3 {[%emt 0:01:49]} Qe6 {[%emt 0:09:54]} 21. Nxe5 {[%emt 0:01:33]} Rd8 {[%emt 0:02:57]} 22. e4 {[%emt 0:05:16]} f4 {[%emt 0:02:52]} 23. gxf4 {[%emt 0:01:56]} Bd6 {[%emt 0:01:19]} 24. f5 {[%emt 0:03:03]} Qh6 {[%emt 0:02:10]} 25. f4 {[%emt 0:00:28]} O-O {[%emt 0:01:22]} 26. Kh1 {[%emt 0:02:22]} 1-0

[Event "8. Arber-Schachopen 2019"]
[Site "Bodenmais"]
[Date "2019.07.31"]
[Round "5.8"]
[White "Kottmair, Toni"]
[Black "Sergeev, Vladimir"]
[Result "1-0"]
[ECO "B28"]
[WhiteElo "2086"]
[BlackElo "2415"]
[Annotator "NA"]
[PlyCount "155"]
[EventDate "2019.07.27"]
[EventCountry "GER"]
[SourceTitle "playchess.com"]
[Source "ChessBase"]
[SourceQuality "1"]
[TimeControl "40/5400+30:1800+30"]

1. e4 {[%emt 0:00:00]} c5 {[%emt 0:03:21]} 2. Nf3 {[%emt 0:00:00]} a6 {[%emt 0:00:11]} 3. c3 {[%emt 0:00:27]} d5 {[%emt 0:00:10]} 4. exd5 {[%emt 0:00:14]} Qxd5 {[%emt 0:00:03]} 5. d4 {[%emt 0:00:23]} Nf6 {[%emt 0:00:31]} 6. Be2 {[%emt 0:07:01]} e6 {[%emt 0:00:31]} 7. O-O {[%emt 0:02:25]} Nc6 {[%emt 0:00:33]} 8. Bg5 {[%emt 0:05:30]} Be7 {[%emt 0:03:12]} 9. c4 {[%emt 0:11:28]} Qd7 {[%emt 0:04:50]} 10. dxc5 {[%emt 0:02:44]} Bxc5 {[%emt 0:00:33]} 11. Nc3 {[%emt 0:04:46]} h6 {[%emt 0:06:32]} 12. Bxf6 {[%emt 0:15:48]} gxf6 {[%emt 0:00:26]} 13. Qxd7+ {[%emt 0:03:15]} Kxd7 {[%emt 0:00:56]} 14. a3 {[%emt 0:10:57]} Ke7 {[%emt 0:11:04]} 15. b4 {[%emt 0:01:57]} Bd6 {[%emt 0:04:34]} 16. c5 {[%emt 0:11:48]} Be5 {[%emt 0:07:35]} 17. Nxe5 {[%emt 0:01:36]} fxe5 {[%emt 0:00:40]} 18. f4 {[%emt 0:02:11]} Bd7 {[%emt 0:00:15]} 19. Rad1 {[%emt 0:01:23]} a5 {[%emt 0:10:52]} 20. b5 {[%emt 0:01:43]} Nd4 {[%emt 0:00:01]} 21. Bh5 {[%emt 0:01:45]} Be8 {[%emt 0:09:01]} 22. fxe5 {[%emt 0:00:33]} Nc2 {[%emt 0:00:02]} 23. Rd6 {[%emt 0:02:54]} Ne3 {[%emt 0:05:50]} 24. Rf4 {[%emt 0:01:01]} Rc8 {[%emt 0:06:26]} 25. Ne4 {[%emt 0:03:42]} Nc4 {[%emt 0:01:01]} 26. a4 {[%emt 0:00:43]} Nxe5 {[%emt 0:04:02]} 27. Rb6 {[%emt 0:00:14]} Rc7 {[%emt 0:00:48]} 28. Nf6 {[%emt 0:01:01]} Bd7 {[%emt 0:11:18]} 29. Ng4 {[%emt 0:03:51]} Rxc5 {[%emt 0:05:40]} 30. Nxe5 {[%emt 0:00:09]} Rxe5 {[%emt 0:00:03]} 31. Rxf7+ {[%emt 0:00:06]} Kd8 {[%emt 0:00:03]} 32. Bf3 {[%emt 0:00:27]} Ke8 {[%emt 0:02:13]} 33. Rg7 {[%emt 0:00:31]} Rg5 {[%emt 0:01:04]} 34. Rxg5 {[%emt 0:00:19]} hxg5 {[%emt 0:00:00]} 35. g3 {[%emt 0:00:00]} Ke7 {[%emt 0:02:25]} 36. Rxb7 {[%emt 0:00:00]} Kd6 {[%emt 0:00:01]} 37. Ra7 {[%emt 0:00:19]} Rc8 {[%emt 0:00:08]} 38. Rxa5 {[%emt 0:00:25]} Rc1+ {[%emt 0:00:02]} 39. Kf2 {[%emt 0:00:44]} e5 {[%emt 0:00:35]} 40. b6 {[%emt 0:01:20]} Rc2+ {[%emt 0:01:01]} 41. Ke3 {[%emt 0:30:10]} Rc3+ {[%emt 0:30:58]} 42. Ke2 {[%emt 0:00:29]} g4 {[%emt 0:00:24]} 43. Be4 {[%emt 0:01:06]} Rc4 {[%emt 0:00:00]} 44. Ke3 {[%emt 0:00:00]} Rxa4 {[%emt 0:00:00]} 45. Rxa4 {[%emt 0:00:00]} Bxa4 {[%emt 0:00:00]} 46. Kd2 {[%emt 0:00:00]} Bd7 {[%emt 0:00:00]} 47. Kc3 {[%emt 0:00:00]} Bb5 {[%emt 0:00:00]} 48. Kb4 {[%emt 0:00:00]} Be2 {[%emt 0:00:00]} 49. b7 {[%emt 0:00:00]} Kc7 {[%emt 0:00:00]} 50. Kc5 {[%emt 0:00:00]} Bd1 {[%emt 0:00:00]} 51. Kd5 {[%emt 0:00:00]} Kxb7 {[%emt 0:00:00]} 52. Kxe5+ {[%emt 0:00:00]} Kc7 {[%emt 0:00:00]} 53. Bf5 {[%emt 0:00:00]} Kd8 {[%emt 0:02:15]} 54. Kf4 {[%emt 0:00:00]} Ke7 {[%emt 0:00:04]} 55. Bxg4 {[%emt 0:00:00]} Bb3 {[%emt 0:00:12]} 56. Ke5 {[%emt 0:00:00]} Kf7 {[%emt 0:00:08]} 57. Bf3 {[%emt 0:00:00]} Kg6 {[%emt 0:00:13]} 58. h4 {[%emt 0:00:00]} Ba4 {[%emt 0:04:26]} 59. g4 {[%emt 0:00:00]} Bd7 {[%emt 0:00:04]} 60. g5 {[%emt 0:00:00]} Be8 {[%emt 0:00:32]} 61. Kf4 {[%emt 0:00:00]} Kg7 {[%emt 0:00:09]} 62. h5 {[%emt 0:00:00]} Bf7 {[%emt 0:00:02]} 63. Kf5 {[%emt 0:00:00]} Be8 {[%emt 0:00:46]} 64. h6+ {[%emt 0:00:00]} Kh7 {[%emt 0:02:17]} 65. Kf6 {[%emt 0:00:00]} Kh8 {[%emt 0:00:04]} 66. Bg4 {[%emt 0:00:00]} Kh7 {[%emt 0:00:42]} 67. Bf5+ {[%emt 0:00:00]} Kh8 {[%emt 0:00:06]} 68. Bg6 {[%emt 0:00:00]} Bb5 {[%emt 0:00:16]} 69. Bf7 {[%emt 0:00:00]} Bd3 {[%emt 0:00:02]} 70. Be6 {[%emt 0:00:00]} Bg6 {[%emt 0:00:15]} 71. Bg4 {[%emt 0:03:16]} Be8 {[%emt 0:00:27]} 72. Bf5 {[%emt 0:03:17]} Bf7 {[%emt 0:00:09]} 73. Bg6 {[%emt 0:00:52]} Bc4 {[%emt 0:00:25]} 74. Bh5 {[%emt 0:00:31]} Bd3 {[%emt 0:00:13]} 75. Bg4 {[%emt 0:00:14]} Bh7 {[%emt 0:03:12]} 76. Bf5 {[%emt 0:00:11]} Bg8 {[%emt 0:00:02]} 77. g6 {[%emt 0:00:29]} Bf7 {[%emt 0:00:04]} 78. g7+ {[%emt 0:00:08]} 1-0

[Event "8. Arber-Schachopen 2019"]
[Site "Bodenmais"]
[Date "2019.07.31"]
[Round "5.9"]
[White "Palmi, Herbert"]
[Black "Hopman, Pieter"]
[Result "0-1"]
[ECO "A21"]
[WhiteElo "2056"]
[BlackElo "2347"]
[Annotator "NA"]
[PlyCount "102"]
[EventDate "2019.07.27"]
[EventCountry "GER"]
[SourceTitle "playchess.com"]
[Source "ChessBase"]
[SourceQuality "1"]
[TimeControl "40/5400+30:1800+30"]

1. c4 {[%emt 0:00:00]} e5 {[%emt 0:00:00]} 2. Nc3 {[%emt 0:00:00]} Bb4 {[%emt 0:00:00]} 3. Qc2 {[%emt 0:00:43]} Nf6 {[%emt 0:00:01]} 4. Nf3 {[%emt 0:00:25]} Nc6 {[%emt 0:00:42]} 5. e3 {[%emt 0:01:23]} O-O {[%emt 0:00:44]} 6. a3 {[%emt 0:00:35]} Bxc3 {[%emt 0:00:22]} 7. Qxc3 {[%emt 0:04:51]} e4 {[%emt 0:04:46]} 8. Nd4 {[%emt 0:01:23]} Ne5 {[%emt 0:01:25]} 9. Be2 {[%emt 0:12:29]} d6 {[%emt 0:00:59]} 10. f4 {[%emt 0:02:17]} Ng6 {[%emt 0:07:46]} 11. b3 {[%emt 0:05:09]} c5 {[%emt 0:01:15]} 12. Nc2 {[%emt 0:00:24]} Bg4 {[%emt 0:03:47]} 13. Bxg4 {[%emt 0:01:38]} Nxg4 {[%emt 0:00:05]} 14. Bb2 {[%emt 0:00:18]} Qh4+ {[%emt 0:03:02]} 15. g3 {[%emt 0:00:14]} Qh6 {[%emt 0:00:14]} 16. h4 {[%emt 0:00:25]} Ne7 {[%emt 0:04:16]} 17. Rg1 {[%emt 0:00:17]} Rfd8 {[%emt 0:03:02]} 18. Rg2 {[%emt 0:01:15]} d5 {[%emt 0:08:19]} 19. O-O-O {[%emt 0:00:42]} Nf5 {[%emt 0:01:21]} 20. cxd5 {[%emt 0:01:15]} Rxd5 {[%emt 0:00:45]} 21. Qc4 {[%emt 0:02:54]} Qe6 {[%emt 0:01:53]} 22. h5 {[%emt 0:01:10]} Rad8 {[%emt 0:01:09]} 23. Qe2 {[%emt 0:00:24]} Nfh6 {[%emt 0:02:13]} 24. Bc3 {[%emt 0:03:09]} Rd3 {[%emt 0:02:21]} 25. Kb2 {[%emt 0:00:20]} b5 {[%emt 0:00:51]} 26. Rf1 {[%emt 0:01:04]} f5 {[%emt 0:01:21]} 27. Rb1 {[%emt 0:02:21]} a5 {[%emt 0:01:11]} 28. b4 {[%emt 0:04:05]} cxb4 {[%emt 0:04:59]} 29. axb4 {[%emt 0:00:17]} a4 {[%emt 0:00:34]} 30. Nd4 {[%emt 0:02:23]} Qd5 {[%emt 0:01:14]} 31. Rgg1 {[%emt 0:03:23]} Nf7 {[%emt 0:13:09]} 32. Ka1 {[%emt 0:04:31]} Nxe3 {[%emt 0:05:37]} 33. Qxe3 {[%emt 0:00:08]} Rxe3 {[%emt 0:00:41]} 34. dxe3 {[%emt 0:00:05]} Nh6 {[%emt 0:01:19]} 35. Rgd1 {[%emt 0:03:23]} Rc8 {[%emt 0:03:29]} 36. Rbc1 {[%emt 0:00:31]} Ng4 {[%emt 0:01:03]} 37. Bd2 {[%emt 0:00:13]} Rc4 {[%emt 0:01:24]} 38. Rxc4 {[%emt 0:00:46]} bxc4 {[%emt 0:05:24]} 39. Rc1 {[%emt 0:00:09]} h6 {[%emt 0:00:53]} 40. Rc3 {[%emt 0:00:40]} Nf6 {[%emt 0:00:14]} 41. Ra3 {[%emt 0:30:18]} Nxh5 {[%emt 0:34:11]} 42. Rxa4 {[%emt 0:00:15]} Nxg3 {[%emt 0:00:20]} 43. Ra5 {[%emt 0:00:16]} Qd7 {[%emt 0:03:09]} 44. Bc3 {[%emt 0:00:11]} Ne2 {[%emt 0:00:59]} 45. Ra8+ {[%emt 0:01:30]} Kh7 {[%emt 0:02:00]} 46. Kb2 {[%emt 0:01:58]} Qb7 {[%emt 0:05:10]} 47. Rd8 {[%emt 0:01:02]} Nxd4 {[%emt 0:00:43]} 48. Rxd4 {[%emt 0:00:07]} Qb5 49. Rd6 {[%emt 0:00:20]} Qa4 {[%emt 0:00:34]} 50. Be5 {[%emt 0:01:25]} Qb3+ {[%emt 0:01:13]} 51. Ka1 {[%emt 0:00:29]} c3 {[%emt 0:00:19]} 0-1

[Event "8. Arber-Schachopen 2019"]
[Site "Bodenmais"]
[Date "2019.07.31"]
[Round "5.10"]
[White "Pohl-Kuemmel, Jens-Uwe"]
[Black "Fauth, Dietmar"]
[Result "1/2-1/2"]
[ECO "D37"]
[WhiteElo "2288"]
[BlackElo "2122"]
[Annotator "NA"]
[PlyCount "99"]
[EventDate "2019.07.27"]
[EventCountry "GER"]
[SourceTitle "playchess.com"]
[Source "ChessBase"]
[SourceQuality "1"]
[TimeControl "40/5400+30:1800+30"]

1. d4 {[%emt 0:00:00]} Nf6 {[%emt 0:00:00]} 2. c4 {[%emt 0:00:00]} e6 {[%emt 0:00:00]} 3. Nf3 {[%emt 0:00:03]} d5 {[%emt 0:00:29]} 4. Nc3 {[%emt 0:00:18]} dxc4 {[%emt 0:00:27]} 5. e3 {[%emt 0:00:37]} a6 {[%emt 0:01:26]} 6. a4 {[%emt 0:00:13]} b6 {[%emt 0:14:25]} 7. Bxc4 {[%emt 0:00:19]} Bb7 {[%emt 0:00:17]} 8. O-O {[%emt 0:00:32]} Bb4 {[%emt 0:04:07]} 9. Qe2 {[%emt 0:03:57]} Nbd7 {[%emt 0:05:22]} 10. Rd1 {[%emt 0:03:01]} O-O {[%emt 0:05:25]} 11. Bd3 {[%emt 0:19:57]} Qe7 {[%emt 0:08:26]} 12. e4 {[%emt 0:03:14]} e5 {[%emt 0:00:39]} 13. dxe5 {[%emt 0:11:21]} Nxe5 {[%emt 0:01:06]} 14. Nxe5 {[%emt 0:01:39]} Qxe5 {[%emt 0:05:25]} 15. f4 {[%emt 0:00:56]} Bc5+ {[%emt 0:07:28]} 16. Kh1 {[%emt 0:00:51]} Qh5 {[%emt 0:01:22]} 17. Qxh5 {[%emt 0:15:13]} Nxh5 {[%emt 0:00:08]} 18. e5 {[%emt 0:00:43]} Rad8 {[%emt 0:04:40]} 19. Be2 {[%emt 0:07:10]} g6 {[%emt 0:01:47]} 20. Rxd8 {[%emt 0:10:08]} Rxd8 {[%emt 0:00:06]} 21. f5 {[%emt 0:00:14]} f6 {[%emt 0:12:23]} 22. exf6 {[%emt 0:02:49]} Nxf6 {[%emt 0:02:45]} 23. Bg5 {[%emt 0:00:37]} Kg7 {[%emt 0:03:42]} 24. fxg6 {[%emt 0:02:22]} Kxg6 {[%emt 0:02:44]} 25. Bf4 {[%emt 0:01:47]} Rd7 {[%emt 0:00:53]} 26. Rf1 {[%emt 0:02:50]} h5 {[%emt 0:05:43]} 27. h3 {[%emt 0:02:47]} h4 {[%emt 0:01:24]} 28. Bd1 {[%emt 0:02:56]} Nh5 {[%emt 0:02:42]} 29. Bc2+ {[%emt 0:00:41]} Kg7 {[%emt 0:00:20]} 30. Be5+ {[%emt 0:00:20]} Kh6 {[%emt 0:00:18]} 31. Rd1 {[%emt 0:01:53]} Rf7 {[%emt 0:02:21]} 32. Be4 {[%emt 0:02:00]} Bxe4 {[%emt 0:02:58]} 33. Nxe4 {[%emt 0:00:05]} Re7 {[%emt 0:00:26]} 34. Nxc5 {[%emt 0:00:37]} bxc5 {[%emt 0:03:07]} 35. Re1 {[%emt 0:00:14]} Kg6 {[%emt 0:00:17]} 36. Bc3 {[%emt 0:00:40]} Ng3+ {[%emt 0:00:09]} 37. Kg1 {[%emt 0:00:13]} Rf7 {[%emt 0:00:27]} 38. Be5 {[%emt 0:00:24]} Rd7 {[%emt 0:00:45]} 39. Kf2 {[%emt 0:01:40]} Rd2+ {[%emt 0:00:44]} 40. Kf3 {[%emt 0:00:10]} Nf5 {[%emt 0:01:30]} 41. Re4 {[%emt 0:05:04]} Rd3+ {[%emt 0:04:38]} 42. Ke2 {[%emt 0:01:06]} Rb3 {[%emt 0:07:22]} 43. Rg4+ {[%emt 0:01:32]} Kf7 {[%emt 0:00:34]} 44. Bc3 {[%emt 0:00:20]} Ke6 {[%emt 0:01:41]} 45. Re4+ {[%emt 0:03:32]} Kd6 {[%emt 0:00:44]} 46. Kd3 {[%emt 0:00:19]} Rb8 {[%emt 0:02:48]} 47. Rf4 {[%emt 0:06:50]} Ke6 {[%emt 0:00:48]} 48. Re4+ {[%emt 0:01:26]} Kd6 {[%emt 0:00:45]} 49. Rf4 {[%emt 0:03:14]} Ke6 {[%emt 0:00:07]} 50. Re4+ {[%emt 0:00:32] Ke5} 1/2-1/2

[Event "8. Arber-Schachopen 2019"]
[Site "Bodenmais"]
[Date "2019.07.31"]
[Round "5.11"]
[White "Woelk, Tom-Frederic"]
[Black "Zepke, Armin"]
[Result "1-0"]
[ECO "D35"]
[WhiteElo "2229"]
[BlackElo "2122"]
[Annotator "NA"]
[PlyCount "83"]
[EventDate "2019.07.27"]
[EventCountry "GER"]
[SourceTitle "playchess.com"]
[Source "ChessBase"]
[SourceQuality "1"]
[TimeControl "40/5400+30:1800+30"]

1. d4 {[%emt 0:00:00]} d5 {[%emt 0:00:00]} 2. c4 {[%emt 0:00:00]} e6 {[%emt 0:00:00]} 3. Nc3 {[%emt 0:00:05]} Nf6 {[%emt 0:00:02]} 4. cxd5 {[%emt 0:00:07]} exd5 {[%emt 0:00:06]} 5. Bg5 {[%emt 0:00:04]} Be7 {[%emt 0:01:10]} 6. e3 {[%emt 0:00:18]} O-O {[%emt 0:00:23]} 7. Bd3 {[%emt 0:00:10]} Nbd7 {[%emt 0:00:51]} 8. Nge2 {[%emt 0:00:27]} c6 {[%emt 0:01:34]} 9. O-O {[%emt 0:05:44]} Nh5 {[%emt 0:16:20]} 10. Bxe7 {[%emt 0:02:04]} Qxe7 {[%emt 0:00:08]} 11. Rb1 {[%emt 0:00:14]} a5 {[%emt 0:00:28]} 12. a3 {[%emt 0:02:09]} Re8 {[%emt 0:06:29]} 13. b4 {[%emt 0:03:33]} axb4 {[%emt 0:00:45]} 14. axb4 {[%emt 0:00:07]} Nf8 {[%emt 0:13:44]} 15. b5 {[%emt 0:00:46]} Qh4 {[%emt 0:05:56]} 16. bxc6 {[%emt 0:03:24]} bxc6 {[%emt 0:00:07]} 17. Ng3 {[%emt 0:07:06]} Bg4 {[%emt 0:03:06]} 18. Be2 {[%emt 0:01:03]} Nf6 {[%emt 0:02:49]} 19. Qc2 {[%emt 0:05:06]} Re6 {[%emt 0:04:52]} 20. Rfc1 {[%emt 0:09:08]} Bxe2 {[%emt 0:03:15]} 21. Ncxe2 {[%emt 0:05:35]} Ng6 {[%emt 0:21:03]} 22. Rb6 {[%emt 0:00:52]} Rc8 {[%emt 0:06:13]} 23. Qa4 {[%emt 0:00:29]} Ne7 {[%emt 0:03:14]} 24. Nf4 {[%emt 0:00:48]} Ng4 {[%emt 0:01:06]} 25. Nh3 {[%emt 0:19:31]} g5 {[%emt 0:00:26]} 26. Qb4 {[%emt 0:00:32]} Nxh2 {[%emt 0:00:49]} 27. Rb7 {[%emt 0:08:51]} Re8 {[%emt 0:06:13]} 28. Rxe7 {[%emt 0:01:03]} Nf3+ {[%emt 0:01:11]} 29. gxf3 {[%emt 0:02:26]} R8xe7 {[%emt 0:00:39]} 30. Nf5 {[%emt 0:00:07]} Qxh3 {[%emt 0:00:18]} 31. Nxe7+ {[%emt 0:00:06]} Kg7 {[%emt 0:00:16]} 32. Rxc6 {[%emt 0:00:09]} Qxf3 {[%emt 0:01:34]} 33. Rxe6 {[%emt 0:00:08]} fxe6 {[%emt 0:00:24]} 34. Nc6 {[%emt 0:01:35]} Qd1+ {[%emt 0:00:25]} 35. Kg2 {[%emt 0:00:08]} Qg4+ {[%emt 0:00:06]} 36. Kf1 {[%emt 0:00:06]} Qd1+ {[%emt 0:00:28]} 37. Qe1 {[%emt 0:00:07]} Qd3+ {[%emt 0:00:14]} 38. Kg1 {[%emt 0:01:35]} Qf5 {[%emt 0:01:19]} 39. Ne5 {[%emt 0:00:07]} h5 {[%emt 0:00:07]} 40. Qc1 {[%emt 0:00:33]} h4 {[%emt 0:00:18]} 41. Qc7+ {[%emt 0:30:46]} Kh6 {[%emt 0:30:22]} 42. Qf7 {[%emt 0:00:23]} 1-0